fUSD/lending_fUSD_20240212
["ID","MTS","AMOUNT","RATE_DAILY","PERIOD"]
[313781751,1707721839711,-500.0,0.00022714,2]
[313781754,1707721839720,-500.0,0.00022714,2]
[313781755,1707721839730,-500.0,0.00022714,2]
[313781756,1707721839739,-500.0,0.00022714,2]
[313781757,1707721839750,-1281.09,0.00022714,2]
[313781758,1707721839760,-1619.63,0.00022714,2]
[313781759,1707721839769,-500.0,0.00022714,2]
[313781760,1707721839778,-500.0,0.00022714,2]
[313781761,1707721839788,-504.5,0.00022714,2]
[313781762,1707721839800,-500.0,0.00022714,2]
[313781763,1707721839809,-1369.14,0.00022714,2]
[313781764,1707721839818,-1448.57,0.00022714,2]
[313781765,1707721839827,-500.0,0.00022714,2]
[313781766,1707721839837,-500.0,0.00022714,2]
[313781767,1707721839846,-551.59,0.00022714,2]
[313781768,1707721839856,-500.0,0.00022714,2]
[313781769,1707721839865,-4983.7,0.00022714,2]
[313781770,1707721839874,-500.0,0.00022714,2]
[313781771,1707721839883,-1470.62,0.00022714,2]
[313781772,1707721839892,-500.0,0.00022714,2]
[313781773,1707721839902,-505.14,0.00022714,2]
[313781774,1707721839912,-841.43,0.00022714,2]
[313781775,1707721839921,-3537.18,0.00022714,2]
[313781776,1707721839931,-1311.98,0.00022714,2]
[313781777,1707721839940,-500.0,0.00022714,2]
[313781778,1707721839949,-821.45,0.00022714,2]
[313781779,1707721839959,-522.98,0.00022714,2]
[313781780,1707721839968,-500.0,0.00022714,2]
[313781781,1707721839977,-500.0,0.00022714,2]
[313781782,1707721839987,-3221.05,0.00022714,2]
[313781783,1707721839996,-2117.62,0.00022714,2]
[313781784,1707721840006,-500.0,0.00022714,2]
[313781785,1707721840015,-500.0,0.00022714,2]
[313781786,1707721840025,-1112.46,0.00022714,2]
[313781787,1707721840035,-500.0,0.00022714,2]
[313781788,1707721840045,-545.85,0.00022714,2]
[313781789,1707721840055,-14705.77,0.00022714,2]
[313781790,1707721840064,-500.0,0.00022714,2]
[313781791,1707721840073,-608.01,0.00022714,2]
[313781792,1707721840083,-945.83,0.00022714,2]
[313781793,1707721840092,-1911.28,0.00022714,2]
[313781794,1707721840102,-2037.28,0.00022714,2]
[313781795,1707721840111,-500.0,0.00022714,2]
[313781796,1707721840120,-500.0,0.00022714,2]
[313781797,1707721840130,-567.51,0.00022714,2]
[313781798,1707721840139,-793.4,0.00022714,2]
[313781799,1707721840149,-500.0,0.00022714,2]
[313781800,1707721840158,-1804.81,0.00022714,2]
[313781801,1707721840168,-500.0,0.00022714,2]
[313781802,1707721840178,-500.0,0.00022714,2]
[313781803,1707721840188,-518.12,0.00022714,2]
[313781804,1707721840198,-1020.25,0.00022714,2]
[313781805,1707721840207,-500.0,0.00022714,2]
[313781806,1707721840216,-872.99,0.00022714,2]
[313781807,1707721840225,-3896.74,0.00022714,2]
[313781808,1707721840235,-1938.91,0.00022714,2]
[313781809,1707721840244,-500.0,0.00022714,2]
[313781810,1707721840253,-500.0,0.00022714,2]
[313781811,1707721840262,-500.0,0.00022714,2]
[313781812,1707721840271,-1353.63,0.00022714,2]
[313781813,1707721840280,-666.93,0.00022714,2]
[313781814,1707721840290,-859.12,0.00022714,2]
[313781815,1707721840300,-500.0,0.00022714,2]
[313781816,1707721840310,-1017.89,0.00022714,2]
[313781817,1707721840319,-500.0,0.00022714,2]
[313781818,1707721840328,-529.01,0.00022714,2]
[313781819,1707721840337,-764.9,0.00022714,2]
[313781820,1707721840346,-8476.53,0.00022714,2]
[313781821,1707721840355,-242.10194582,0.00022733,2]
[313781822,1707721840364,-1235.85712146,0.00022733,2]
[313781823,1707721840373,-500.0,0.00022741,2]
[313781824,1707721840382,-1997.78,0.00022741,2]
[313781825,1707721840392,-8967.49,0.00022741,2]
[313781826,1707721840401,-500.0,0.00022741,2]
[313781827,1707721840410,-500.0,0.00022741,2]
[313781828,1707721840420,-500.0,0.00022741,2]
[313781829,1707721840429,-201.3934913,0.00022741,2]
[313781830,1707721840438,-864.77,0.00022741,2]
[313781831,1707721840447,-500.0,0.00022741,2]
[313781832,1707721840456,-678.3,0.00022741,2]
[313781833,1707721840466,-2634.09,0.00022741,2]
[313781834,1707721840475,-1677.9,0.00022741,2]
[313781835,1707721840484,-1113.6,0.00022741,2]
[313781836,1707721840493,-500.0,0.00022741,2]
[313781837,1707721840502,-500.0,0.00022741,2]
[313781838,1707721840512,-1445.4,0.00022741,2]
[313781839,1707721840521,-2072.4,0.00022741,2]
[313781840,1707721840530,-2604.84,0.00022741,2]
[313781841,1707721840539,-3696.14,0.00022741,2]
[313781842,1707721840550,-3462.52,0.00022741,2]
[313781843,1707721840559,-1540.02,0.00022741,2]
[313781844,1707721840568,-1212.59,0.00022741,2]
[313781845,1707721840577,-4675.34,0.00022741,2]
[313781846,1707721840587,-500.0,0.00022742,2]
[313781847,1707721840597,-500.0,0.00022742,2]
[313781848,1707721840606,-308.69038749,0.00022742,2]
[313781849,1707721840615,-732.99,0.00022742,2]
[313781850,1707721840624,-500.0,0.00022742,2]
[313781851,1707721840633,-672.82,0.00022742,2]
[313781852,1707721840642,-500.0,0.00022742,2]
[313781853,1707721840652,-500.0,0.00022742,2]
[313781854,1707721840661,-500.0,0.00022742,2]
[313781855,1707721840670,-500.0,0.00022742,2]
[313781856,1707721840679,-837.59,0.00022742,2]
[313781857,1707721840689,-500.0,0.00022742,2]
[313781858,1707721840698,-705.93,0.00022742,2]
[313781859,1707721840707,-500.0,0.00022742,2]
[313781860,1707721840717,-500.0,0.00022742,2]
[313781861,1707721840727,-582.96,0.00022742,2]
[313781862,1707721840737,-648.39,0.00022742,2]
[313781863,1707721840748,-500.0,0.00022742,2]
[313781864,1707721840757,-500.0,0.00022742,2]
[313781865,1707721840767,-842.47,0.00022742,2]
[313781866,1707721840775,-500.0,0.00022742,2]
[313781867,1707721840784,-504.39,0.00022742,2]
[313781868,1707721840793,-500.0,0.00022742,2]
[313781869,1707721840805,-841.76,0.00022742,2]
[313781870,1707721840814,-500.0,0.00022742,2]
[313781871,1707721840825,-500.0,0.00022742,2]
[313781872,1707721840834,-1123.74,0.00022742,2]
[313781873,1707721840843,-500.0,0.00022742,2]
[313781874,1707721840851,-632.1,0.00022742,2]
[313781875,1707721840861,-590.78,0.00022742,2]
[313781876,1707721840870,-540.97,0.00022742,2]
[313781877,1707721840879,-500.0,0.00022742,2]
[313781878,1707721840888,-749.04,0.00022742,2]
[313781879,1707721840898,-500.0,0.00022742,2]
[313781880,1707721840908,-500.0,0.00022742,2]
[313781881,1707721840917,-500.0,0.00022742,2]
[313781882,1707721840927,-500.0,0.00022742,2]
[313781883,1707721840936,-500.0,0.00022742,2]
[313781884,1707721840946,-500.0,0.00022742,2]
[313781885,1707721840955,-500.0,0.00022742,2]
[313781886,1707721840965,-555.67,0.00022742,2]
[313781887,1707721840974,-947.2,0.00022742,2]
[313781888,1707721840983,-500.0,0.00022742,2]
[313781889,1707721840993,-500.0,0.00022742,2]
[313781890,1707721841003,-521.44,0.00022742,2]
[313781891,1707721841012,-500.0,0.00022742,2]
[313781892,1707721841022,-858.21,0.00022742,2]
[313781893,1707721841031,-500.0,0.00022742,2]
[313781894,1707721841041,-500.0,0.00022742,2]
[313781895,1707721841052,-500.0,0.00022742,2]
[313781896,1707721841060,-500.0,0.00022742,2]
[313781897,1707721841069,-500.0,0.00022742,2]
[313781898,1707721841078,-500.0,0.00022742,2]
[313781899,1707721841087,-500.0,0.00022742,2]
[313781900,1707721841097,-500.0,0.00022742,2]
[313781901,1707721841106,-500.0,0.00022742,2]
[313781902,1707721841115,-500.0,0.00022742,2]
[313781903,1707721841125,-589.75,0.00022742,2]
[313781904,1707721841134,-1483.92,0.00022742,2]
[313781905,1707721841144,-500.0,0.00022742,2]
[313781906,1707721841153,-754.09,0.00022742,2]
[313781907,1707721841162,-676.02,0.00022742,2]
[313781908,1707721841172,-500.0,0.00022742,2]
[313781909,1707721841181,-649.23,0.00022742,2]
[313781910,1707721841191,-1393.57,0.00022742,2]
[313781911,1707721841200,-1266.14,0.00022742,2]
[313781912,1707721841210,-1591.91,0.00022742,2]
[313781913,1707721841219,-732.49,0.00022742,2]
[313781914,1707721841228,-853.05,0.00022742,2]
[313781915,1707721841237,-500.0,0.00022742,2]
[313781916,1707721841247,-500.0,0.00022742,2]
[313781917,1707721841256,-500.0,0.00022742,2]
[313781918,1707721841265,-500.0,0.00022742,2]
[313781919,1707721841275,-2268.49,0.00022742,2]
[313781920,1707721841283,-1689.26,0.00022742,2]
[313781921,1707721841293,-500.0,0.00022742,2]
[313781922,1707721841304,-371.64547289,0.00022742,2]
[313781923,1707721841313,-585.1,0.00022742,2]
[313781924,1707721841322,-500.0,0.00022742,2]
[313781925,1707721841332,-500.0,0.00022742,2]
[313781926,1707721841341,-3206.81,0.00022742,2]
[313781927,1707721841350,-500.0,0.00022742,2]
[313781928,1707721841360,-527.30938177,0.00022742,2]
[313781929,1707721841369,-500.0,0.00022742,2]
[313781930,1707721841379,-500.0,0.00022742,2]
[313781931,1707721841388,-500.0,0.00022742,2]
[313781932,1707721841398,-558.7368516,0.00022742,2]
[313781933,1707721841407,-408.71667149,0.00022742,2]
[313781934,1707721841416,-583.55773005,0.00022742,2]
[313781935,1707721841426,-500.0,0.00022742,2]
[313781936,1707721841435,-1004.65,0.00022742,2]
[313781937,1707721841445,-500.0,0.00022742,2]
[313781938,1707721841454,-500.0,0.00022742,2]
[313781939,1707721841463,-500.0,0.00022742,2]
[313781940,1707721841473,-500.0,0.00022742,2]
[313781941,1707721841482,-423.75437784,0.00022742,2]
[313781942,1707721841492,-500.0,0.00022742,2]
[313781943,1707721841502,-683.61,0.00022742,2]
[313781944,1707721841511,-500.0,0.00022742,2]
[313781945,1707721841520,-500.0,0.00022742,2]
[313781946,1707721841530,-500.0,0.00022742,2]
[313781947,1707721841539,-500.0,0.00022742,2]
[313781948,1707721841551,-500.0,0.00022742,2]
[313781949,1707721841560,-623.74027974,0.00022742,2]
[313781950,1707721841570,-3601.18,0.00022742,2]
[313781952,1707721841579,-500.0,0.00022742,2]
[313781954,1707721841588,-500.0,0.00022742,2]
[313781956,1707721841598,-3034.16,0.00022742,2]
[313781958,1707721841607,-295.41195466,0.00022742,2]
[313781960,1707721841617,-500.0,0.00022742,2]
[313781962,1707721841627,-500.0,0.00022742,2]
[313781964,1707721841636,-1597.01,0.00022742,2]
[313781966,1707721841646,-500.0,0.00022742,2]
[313781968,1707721841655,-500.0,0.00022742,2]
[313781970,1707721841664,-500.0,0.00022742,2]
[313781972,1707721841674,-500.0,0.00022742,2]
[313781974,1707721841683,-4048.04,0.00022742,2]
[313781976,1707721841693,-500.0,0.00022742,2]
[313781978,1707721841702,-500.0,0.00022742,2]
[313781980,1707721841711,-500.0,0.00022742,2]
[313781982,1707721841721,-2604.33,0.00022742,2]
[313781984,1707721841730,-500.0,0.00022742,2]
[313781985,1707721841740,-1805.91,0.00022742,2]
[313781986,1707721841753,-1742.28,0.00022742,2]
[313781987,1707721841762,-877.93,0.00022742,2]
[313781988,1707721841771,-500.0,0.00022742,2]
[313781989,1707721841780,-547.71,0.00022742,2]
[313781990,1707721841790,-632.93,0.00022742,2]
[313781991,1707721841801,-394.96696154,0.00022742,2]
[313781992,1707721841811,-500.0,0.00022742,2]
[313781993,1707721841820,-2781.8,0.00022742,2]
[313781994,1707721841830,-639.96,0.00022742,2]
[313781995,1707721841841,-500.0,0.00022742,2]
[313781996,1707721841850,-500.0,0.00022742,2]
[313781997,1707721841860,-500.0,0.00022742,2]
[313781998,1707721841872,-958.6,0.00022742,2]
[313781999,1707721841882,-500.0,0.00022742,2]
[313782000,1707721841891,-500.0,0.00022742,2]
[313782001,1707721841901,-500.0,0.00022742,2]
[313782002,1707721841910,-500.0,0.00022742,2]
[313782003,1707721841920,-1486.86,0.00022742,2]
[313782004,1707721841930,-500.0,0.00022742,2]
[313782005,1707721841940,-1740.82,0.00022742,2]
[313782006,1707721841949,-500.0,0.00022742,2]
[313782007,1707721841959,-371.4705859,0.00022742,2]
[313782008,1707721841968,-500.0,0.00022742,2]
[313782009,1707721841978,-500.0,0.00022742,2]
[313782010,1707721841987,-388.23104919,0.00022742,2]
[313782011,1707721841996,-500.0,0.00022742,2]
[313782012,1707721842006,-500.0,0.00022742,2]
[313782013,1707721842016,-500.0,0.00022742,2]
[313782014,1707721842025,-500.0,0.00022742,2]
[313782015,1707721842035,-500.0,0.00022742,2]
[313782016,1707721842044,-357.13200723,0.00022742,2]
[313782017,1707721842055,-1081.12,0.00022742,2]
[313782018,1707721842065,-500.0,0.00022742,2]
[313782019,1707721842075,-771.85,0.00022742,2]
[313782020,1707721842085,-500.0,0.00022742,2]
[313782021,1707721842094,-500.0,0.00022742,2]
[313782022,1707721842103,-500.0,0.00022742,2]
[313782023,1707721842113,-500.0,0.00022742,2]
[313782024,1707721842123,-500.0,0.00022742,2]
[313782025,1707721842132,-500.0,0.00022742,2]
[313782026,1707721842141,-1190.17,0.00022742,2]
[313782027,1707721842151,-512.84129937,0.00022742,2]
[313782028,1707721842161,-500.0,0.00022742,2]
[313782029,1707721842171,-500.0,0.00022742,2]
[313782030,1707721842181,-147042.91842038,0.00022743,2]
[313782031,1707721842190,-20269.3479,0.00022743,2]
[313782032,1707721842200,-91633.6728,0.00022743,2]
[313782033,1707721842209,-1000.0,0.00022743,2]
[313782034,1707721842219,-198.228,0.00022743,2]
[313782035,1707721842229,-842.5234,0.00022743,2]
[313782036,1707721842239,-262635.43984684,0.00022743,2]
[313782037,1707721842258,-9781.81384446,0.00022743,2]
[313782038,1707721842291,-417.121379,0.00022743,2]
[313782055,1707721843229,-2947.81722831,0.00022743,2]
[313782056,1707721843241,-330.94292539,0.00022743,2]
[313782068,1707721843542,-558.84193825,0.000225,2]
[313782069,1707721843553,-18416.55220313,0.00022743,2]
[313782070,1707721843578,-1145.80337591,0.00022743,2]
[313782071,1707721843705,-1085.42,0.00022743,2]
[313782081,1707721845952,-500.0,0.00022571,2]
[313782082,1707721845961,-156.53239158,0.00022571,2]
[313782083,1707721846056,-1953.13760842,0.00022571,2]
[313782084,1707721846065,-498.0042777,0.00022741,2]
[313782085,1707721846075,-275.44819312,0.00022741,2]
[313782086,1707721846084,-500.0,0.00022742,2]
[313782087,1707721846094,-617.55,0.00022742,2]
[313782088,1707721846104,-15431.1707335,0.00022743,2]
[313782089,1707721846166,-844.0,0.00022743,2]
[313782090,1707721846178,-364.02471018,0.00022743,2]
[313782091,1707721846224,-2551.39094543,0.00022743,2]
[313782092,1707721846236,-408.1979072,0.00022743,2]
[313782101,1707721862965,563.00832416,0.0002029,2]
[313782102,1707721875370,567.45242165,0.00022114,2]
[313782106,1707721925098,323.03522182,0.00023,30]
[313782107,1707721943251,1529.23,0.00021762,2]
[313782108,1707722047259,259.37,0.00021752,2]
[313782109,1707722097209,167.22,0.00021743,2]
[313782110,1707722109656,167.18,0.00022372,2]
[313782111,1707722132341,160.96809554,0.00022371,2]
[313782112,1707722178381,462.35,0.00021655,2]
[313782113,1707722213556,258.12,0.00021646,2]
[313782114,1707722216529,188.08,0.00019728,2]
[313782115,1707722217223,188.08,0.00021992,2]
[313782117,1707722487484,250.0,0.00021619,2]
[313782118,1707722571536,216.14,0.00021619,2]
[313782119,1707722584556,165.45,0.00022276,2]
[313782120,1707722630018,1383.37988982,0.000223,3]
[313782121,1707722678592,152.32,0.00021742,2]
[313782122,1707722713291,630.12,0.00021576,2]
[313782123,1707722734969,169.27,0.00019658,2]
[313782124,1707722735177,169.27,0.00021922,2]
[313782125,1707722907372,1062.99,0.00021565,2]
[313782126,1707722917893,2000.0,0.00021565,2]
[313782154,1707722998378,250.0,0.00021621,2]
[313782155,1707723002199,171.14,0.00021622,2]
[313782175,1707723034338,-246.24027844,0.00022466,2]
[313782176,1707723034348,-150.0,0.00022466,2]
[313782177,1707723034357,-2506.973282,0.00022467,2]
[313782178,1707723034367,-155.38122248,0.00022467,2]
[313782179,1707723034376,-341.40521708,0.00022468,2]
[313782180,1707723034388,-562.57458292,0.00022468,2]
[313782181,1707723034397,-1854.72253896,0.00022468,2]
[313782182,1707723034409,-302.33486349,0.00022468,2]
[313782183,1707723034421,-2068.08379755,0.00022468,2]
[313782184,1707723034430,-1000.0,0.00022468,2]
[313782185,1707723034439,-2500.0,0.00022468,2]
[313782186,1707723034448,-15959.91620245,0.00022469,2]
[313782187,1707723034590,-7266.00620357,0.00022469,2]
[313782188,1707723034607,-75386.48069398,0.00022469,2]
[313782189,1707723034616,-311.61034691,0.0002247,2]
[313782190,1707723034626,-367.9742056,0.0002247,2]
[313782191,1707723034635,-1020.95470395,0.0002247,2]
[313782192,1707723034643,-1020.95470394,0.0002247,2]
[313782193,1707723034653,-304.26,0.0002247,2]
[313782194,1707723034662,-8851.6,0.0002247,2]
[313782195,1707723034672,-385.81,0.0002247,2]
[313782196,1707723034682,-371.6795,0.00022471,2]
[313782197,1707723034692,-291.15664983,0.000225,2]
[313782198,1707723034702,-499.99,0.00022503,2]
[313782199,1707723034712,-736.88,0.00022523,2]
[313782200,1707723034723,-419.88,0.00022523,2]
[313782201,1707723034733,-1143.33403442,0.0002254,2]
[313782202,1707723034744,-151.0212,0.00022558,3]
[313782203,1707723034754,-151.0212,0.00022558,3]
[313782204,1707723034764,-151.0212,0.00022558,3]
[313782205,1707723034773,-151.0212,0.00022558,3]
[313782206,1707723034784,-151.0212,0.00022558,3]
[313782207,1707723034794,-151.0212,0.00022558,3]
[313782208,1707723034805,-151.0212,0.00022558,3]
[313782209,1707723034815,-151.0212,0.00022558,3]
[313782210,1707723034825,-151.0212,0.00022558,3]
[313782211,1707723034837,-151.0212,0.00022558,3]
[313782212,1707723034848,-151.0212,0.00022558,3]
[313782213,1707723034858,-151.0212,0.00022558,3]
[313782214,1707723034870,-151.0212,0.00022558,3]
[313782215,1707723034880,-151.0212,0.00022558,3]
[313782216,1707723034890,-151.0212,0.00022558,3]
[313782217,1707723034899,-250.03780157,0.00022559,2]
[313782218,1707723034909,-500.0,0.00022567,2]
[313782219,1707723034919,-2061.11,0.00022567,2]
[313782220,1707723034929,-500.0,0.00022567,2]
[313782221,1707723034938,-5701.69,0.00022567,2]
[313782222,1707723034948,-2021.77,0.00022567,2]
[313782223,1707723034958,-500.0,0.00022567,2]
[313782224,1707723034967,-500.0,0.00022567,2]
[313782225,1707723034977,-1095.92,0.00022567,2]
[313782226,1707723034987,-830.39,0.00022567,2]
[313782227,1707723034996,-615.17,0.00022567,2]
[313782228,1707723035005,-6317.53,0.00022567,2]
[313782229,1707723035015,-500.0,0.00022567,2]
[313782230,1707723035025,-500.0,0.00022567,2]
[313782231,1707723035035,-500.0,0.00022567,2]
[313782232,1707723035045,-1945.01,0.00022567,2]
[313782233,1707723035055,-500.0,0.00022567,2]
[313782234,1707723035065,-648.78,0.00022567,2]
[313782235,1707723035077,-7725.47,0.00022567,2]
[313782236,1707723035089,-1539.58,0.00022567,2]
[313782237,1707723035098,-500.0,0.00022567,2]
[313782238,1707723035108,-2811.41,0.00022567,2]
[313782239,1707723035118,-500.0,0.00022567,2]
[313782240,1707723035127,-1764.27,0.00022567,2]
[313782241,1707723035137,-2293.52,0.00022567,2]
[313782242,1707723035146,-778.61,0.00022567,2]
[313782243,1707723035158,-500.0,0.00022567,2]
[313782244,1707723035168,-695.03,0.00022567,2]
[313782245,1707723035178,-500.0,0.00022567,2]
[313782246,1707723035188,-500.0,0.00022567,2]
[313782247,1707723035199,-500.0,0.00022567,2]
[313782248,1707723035209,-500.0,0.00022567,2]
[313782249,1707723035219,-500.0,0.00022567,2]
[313782250,1707723035229,-5344.28,0.00022567,2]
[313782251,1707723035239,-500.0,0.00022567,2]
[313782252,1707723035249,-1883.39,0.00022567,2]
[313782253,1707723035259,-500.0,0.00022567,2]
[313782254,1707723035270,-500.0,0.00022567,2]
[313782255,1707723035280,-557.97,0.00022567,2]
[313782256,1707723035290,-500.0,0.00022567,2]
[313782257,1707723035300,-961.39,0.00022567,2]
[313782258,1707723035309,-500.0,0.00022567,2]
[313782259,1707723035319,-518.26,0.00022567,2]
[313782260,1707723035328,-1231.84,0.00022567,2]
[313782261,1707723035341,-500.0,0.00022567,2]
[313782262,1707723035351,-500.0,0.00022567,2]
[313782263,1707723035360,-500.0,0.00022567,2]
[313782264,1707723035370,-500.0,0.00022567,2]
[313782265,1707723035380,-736.85,0.00022567,2]
[313782266,1707723035390,-1978.69,0.00022567,2]
[313782267,1707723035399,-2002.97,0.00022567,2]
[313782268,1707723035409,-500.0,0.00022567,2]
[313782269,1707723035418,-644.79,0.00022567,2]
[313782270,1707723035428,-4708.67,0.00022567,2]
[313782271,1707723035437,-500.0,0.00022567,2]
[313782272,1707723035448,-500.0,0.00022567,2]
[313782273,1707723035458,-621.09113043,0.00022567,2]
[313782274,1707723035467,-500.0,0.00022567,2]
[313782275,1707723035477,-500.0,0.00022567,2]
[313782276,1707723035487,-884.15,0.00022567,2]
[313782277,1707723035499,-500.0,0.00022568,2]
[313782278,1707723035508,-670.23,0.00022568,2]
[313782279,1707723035517,-802.69,0.00022568,2]
[313782280,1707723035527,-500.0,0.00022568,2]
[313782281,1707723035537,-676.51,0.00022568,2]
[313782282,1707723035546,-652.08,0.00022568,2]
[313782283,1707723035556,-500.0,0.00022568,2]
[313782284,1707723035565,-608.95,0.00022568,2]
[313782285,1707723035575,-807.37,0.00022568,2]
[313782286,1707723035586,-956.91,0.00022568,2]
[313782287,1707723035595,-706.76,0.00022568,2]
[313782288,1707723035604,-806.68,0.00022568,2]
[313782289,1707723035613,-728.83,0.00022568,2]
[313782290,1707723035622,-1076.91,0.00022568,2]
[313782291,1707723035631,-613.2,0.00022568,2]
[313782292,1707723035640,-864.63,0.00022568,2]
[313782293,1707723035649,-1051.21,0.00022568,2]
[313782294,1707723035658,-717.83,0.00022568,2]
[313782295,1707723035670,-925.92,0.00022568,2]
[313782296,1707723035679,-500.0,0.00022568,2]
[313782297,1707723035688,-203.97301222,0.00022568,2]
[313782298,1707723035698,-500.0,0.00022568,2]
[313782299,1707723035707,-508.21,0.00022568,2]
[313782300,1707723035716,-907.73,0.00022568,2]
[313782301,1707723035726,-504.98,0.00022568,2]
[313782302,1707723035735,-822.45,0.00022568,2]
[313782303,1707723035745,-762.83,0.00022568,2]
[313782304,1707723035754,-500.0,0.00022568,2]
[313782305,1707723035763,-500.0,0.00022568,2]
[313782306,1707723035772,-500.0,0.00022568,2]
[313782307,1707723035782,-722.67,0.00022568,2]
[313782308,1707723035791,-983.43,0.00022568,2]
[313782309,1707723035800,-500.0,0.00022568,2]
[313782310,1707723035810,-1335.51,0.00022568,2]
[313782311,1707723035820,-1429.02,0.00022568,2]
[313782312,1707723035829,-995.25,0.00022568,2]
[313782313,1707723035840,-1041.84,0.00022568,2]
[313782314,1707723035850,-573.28,0.00022568,2]
[313782315,1707723035859,-342.70063007,0.00022568,2]
[313782316,1707723035873,-616.61648566,0.00022568,2]
[313782317,1707723035885,-254.06288427,0.00022568,2]
[313782318,1707723035894,-64.28031573,0.00022568,2]
[313782319,1707723035906,-1291.04968427,0.00022568,2]
[313782320,1707723035915,-905.49,0.00022568,2]
[313782321,1707723035924,-754.86,0.00022568,2]
[313782322,1707723035933,-1525.58,0.00022568,2]
[313782323,1707723035942,-335.50323573,0.00022568,2]
[313782324,1707723035955,-366.46676427,0.00022568,2]
[313782325,1707723035964,-374.1156368,0.00022568,2]
[313782326,1707723035977,-236.33317145,0.00022568,2]
[313782327,1707723035986,-264.20655858,0.00022568,2]
[313782328,1707723036009,-315.2812933,0.00022568,2]
[313782329,1707723036020,-238.02214812,0.00022568,2]
[313782330,1707723036029,-311.32864459,0.00022568,2]
[313782331,1707723036055,-188.67135541,0.00022568,2]
[313782332,1707723036064,-672.63177235,0.00022568,2]
[313782333,1707723036079,-1586.51822765,0.00022568,2]
[313782334,1707723036090,-500.0,0.00022568,2]
[313782335,1707723036100,-500.0,0.00022568,2]
[313782336,1707723036110,-500.0,0.00022568,2]
[313782337,1707723036119,-500.0,0.00022568,2]
[313782338,1707723036128,-150.0,0.00022568,2]
[313782339,1707723036137,-500.0,0.00022568,2]
[313782340,1707723036146,-500.0,0.00022568,2]
[313782341,1707723036157,-3216.8,0.00022568,2]
[313782342,1707723036166,-500.0,0.00022568,2]
[313782343,1707723036176,-500.0,0.00022568,2]
[313782344,1707723036185,-500.0,0.00022568,2]
[313782345,1707723036194,-1165.29,0.00022568,2]
[313782346,1707723036204,-500.0,0.00022568,2]
[313782347,1707723036213,-1552.14,0.00022568,2]
[313782348,1707723036222,-500.0,0.00022568,2]
[313782349,1707723036232,-500.0,0.00022568,2]
[313782350,1707723036241,-500.0,0.00022568,2]
[313782351,1707723036251,-500.0,0.00022568,2]
[313782352,1707723036261,-514.58,0.00022568,2]
[313782353,1707723036270,-500.0,0.00022568,2]
[313782354,1707723036280,-500.0,0.00022568,2]
[313782355,1707723036289,-500.0,0.00022568,2]
[313782356,1707723036299,-589.27067784,0.00022568,2]
[313782357,1707723036309,-500.0,0.00022568,2]
[313782358,1707723036318,-1914.54,0.00022568,2]
[313782359,1707723036327,-500.0,0.00022568,2]
[313782360,1707723036339,-500.0,0.00022568,2]
[313782361,1707723036348,-3734.37,0.00022568,2]
[313782362,1707723036357,-500.0,0.00022568,2]
[313782363,1707723036366,-500.0,0.00022568,2]